{"text_format":"1","workbook":"xlsx","n_sheets":1,"sheets":["ColorCalculator"],"not_rendered":{"charts":0,"images":0,"macros":1,"external_links":0,"defined_names":1,"comments":0,"pivot_tables":0},"unopened":[],"bounds":{"document_bytes":16777216,"sheet_cells":100000,"rows_first":2000,"rows_last":500,"rows_between":2000,"halvings":0,"cell_chars":16384,"cell_head_chars":4096},"cells_cut":0,"cells_raw":0,"read":"whole","date_system":"1900"}

{"sheet":"ColorCalculator","index":0,"n_rows":30,"n_cols":23,"rows_kept":30,"cut":false,"hidden":false,"merged":[]}
["DATA ENTRY",null,null,null,null,null,null,null,null,null,null,null,null,null,"CATEGORY","RESULTS"]
["Store A",2,14.09,27.63,35.590000000000003,5.14,89.14,35.5,85.5,65.760000000000005,24.48,16.64,47.56]
["Store B",46.54,74.680000000000007,44.55,19.66,1.91,53.7,42.7,56.51,79.36,75.599999999999994,8.1999999999999993,71.03,null,"CATEGORY A",null,{"$f":"REPT(\"|\",(1000*(P3/$V$3))/10)","v":""},null,null,null,null,{"$f":"SUM(A:N)","v":6003.5099999999993},"TOTAL"]
["Store C",5.23,4.83,24.47,69.06,13.3,65.81,36.42,76.56,63.69,85.87,56.83,70.48,null,"CATEGORY B",null,{"$f":"REPT(\"|\",(1000*(P4/$V$3))/10)","v":""},null,null,null,null,{"$f":"V3-SUM(P:P)","v":6003.5099999999993},"UNALLOCATED"]
["Store D",42.48,17.190000000000001,73.56,35.67,5.9,78.150000000000006,11.58,63.12,36.049999999999997,69.180000000000007,9.44,54.55,null,"CATEGORY C",null,""]
["Store E",51.38,43.97,93.37,15.84,72.41,20.25,60.34,39.729999999999997,48.93,75.7,65.75,83.31,null,"CATEGORY D",null,""]
["Store F",76.72,1.1599999999999999,43.28,61.16,37.15,70.81,95.15,86.28,35.99,48.92,30.65,62.58,null,"CATEGORY E",null,""]
["Store G",42.13,47.16,55.53,56.64,96.81,61.12,21.72,27.37,57.24,73.25,87.86,70.19,null,"CATEGORY F",null,""]
["Store H",44.66,81.3,55.8,61.12,67.13,87.31,31.59,71.7,22.58,81.58,13.49,72.709999999999994,null,"CATEGORY H",null,""]
["Store I",18.059999999999999,5.0199999999999996,13.57,11.42,33.659999999999997,67.03,19.850000000000001,67.650000000000006,81.58,68.81,90.4,54.46,null,"CATEGORY I",null,""]
["Store J",47.32,37.01,38.909999999999997,73.209999999999994,42.75,1.84,88.52,94.96,78.58,38.799999999999997,86.07,42.32,null,null,null,""]
[null,null,null,null,null,null,null,null,null,null,null,null,null,null,null,null,""]
[null,null,null,null,null,null,null,null,null,null,null,null,null,null,null,null,""]
[null,null,null,null,null,null,null,null,null,null,null,null,null,null,null,null,""]
[null,null,null,null,null,null,null,null,null,null,null,null,null,null,null,null,""]
[null,null,null,null,null,null,null,null,null,null,null,null,null,null,null,null,""]
[null,null,null,null,null,null,null,null,null,null,null,null,null,null,null,null,""]
[null,null,null,null,null,null,null,null,null,null,null,null,null,null,null,null,""]
[null,null,null,null,null,null,null,null,null,null,null,null,null,null,null,null,""]
[null,null,null,null,null,null,null,null,null,null,null,null,null,null,null,null,""]
[null,null,null,null,null,null,null,null,null,null,null,null,null,null,null,null,""]
[null,null,null,null,null,null,null,null,null,null,null,null,null,null,null,null,""]
[null,null,null,null,null,null,null,null,null,null,null,null,null,null,null,null,""]
[null,null,null,null,null,null,null,null,null,null,null,null,null,null,null,null,""]
[null,null,null,null,null,null,null,null,null,null,null,null,null,null,null,null,""]
[null,null,null,null,null,null,null,null,null,null,null,null,null,null,null,null,""]
[null,null,null,null,null,null,null,null,null,null,null,null,null,null,null,null,""]
[null,null,null,null,null,null,null,null,null,null,null,null,null,null,null,null,""]
[null,null,null,null,null,null,null,null,null,null,null,null,null,null,null,null,""]
[null,null,null,null,null,null,null,null,null,null,null,null,null,null,null,null,""]